[Event "Early-Titled-Tuesday-Blitz-May-07-2024"]
[Site "Chess.com"]
[Date "2024.05.07"]
[Round "5"]
[White "PeshkaCh"]
[Black "nihalsarin"]
[Result "0-1"]
[WhiteElo "2882"]
[BlackElo "3142"]
[TimeControl "180+1"]
[EndTime "9:00:06 PDT"]
[Termination "nihalsarin won by checkmate"]

1. Nf3 {[%clk 0:03:00.9]} 1... d5 {[%clk 0:02:49.8]} 2. d4 {[%clk 0:02:59.7]}
2... Nf6 {[%clk 0:02:37.9]} 3. c4 {[%clk 0:02:55.2]} 3... e6 {[%clk 0:02:23.7]}
4. Nc3 {[%clk 0:02:53.7]} 4... a5 {[%clk 0:02:18]} 5. Bg5 {[%clk 0:02:49.3]}
5... Be7 {[%clk 0:02:13.1]} 6. cxd5 {[%clk 0:02:48.9]} 6... exd5 {[%clk
0:02:12.9]} 7. e3 {[%clk 0:02:49.3]} 7... O-O {[%clk 0:02:12.8]} 8. Bd3 {[%clk
0:02:49.9]} 8... c6 {[%clk 0:02:13.5]} 9. O-O {[%clk 0:02:49.6]} 9... Re8 {[%clk
0:02:12.9]} 10. Qc2 {[%clk 0:02:49.3]} 10... h6 {[%clk 0:02:08]} 11. Bh4 {[%clk
0:02:49.4]} 11... Na6 {[%clk 0:02:08.7]} 12. a3 {[%clk 0:02:49]} 12... Nc7
{[%clk 0:02:09]} 13. Ne5 {[%clk 0:02:49.2]} 13... Ng4 {[%clk 0:02:07.2]} 14.
Bh7+ {[%clk 0:02:36.1]} 14... Kf8 {[%clk 0:02:07.2]} 15. Bxe7+ {[%clk
0:02:36.4]} 15... Qxe7 {[%clk 0:02:05.4]} 16. Nxg4 {[%clk 0:02:36.9]} 16... Bxg4
{[%clk 0:02:06.3]} 17. Bf5 {[%clk 0:02:37.4]} 17... Bxf5 {[%clk 0:02:05.7]} 18.
Qxf5 {[%clk 0:02:38.3]} 18... g6 {[%clk 0:02:02.7]} 19. Qd3 {[%clk 0:02:34.3]}
19... Kg7 {[%clk 0:02:02.8]} 20. Rac1 {[%clk 0:02:34]} 20... h5 {[%clk
0:01:58.8]} 21. Rfe1 {[%clk 0:02:31.2]} 21... Ne6 {[%clk 0:01:53.7]} 22. Na4
{[%clk 0:02:30.8]} 22... Qf6 {[%clk 0:01:43.5]} 23. Nc5 {[%clk 0:02:28.9]} 23...
Nxc5 {[%clk 0:01:43.7]} 24. Rxc5 {[%clk 0:02:29.6]} 24... a4 {[%clk 0:01:44.6]}
25. h3 {[%clk 0:02:13.6]} 25... Re7 {[%clk 0:01:32.1]} 26. e4 {[%clk 0:02:04.6]}
26... dxe4 {[%clk 0:01:27.6]} 27. Rxe4 {[%clk 0:02:05.5]} 27... Rae8 {[%clk
0:01:21.5]} 28. Rxe7 {[%clk 0:02:01.2]} 28... Rxe7 {[%clk 0:01:22.4]} 29. Rc1
{[%clk 0:01:59.8]} 29... Rd7 {[%clk 0:01:17.5]} 30. Rd1 {[%clk 0:01:59.1]} 30...
Rd5 {[%clk 0:00:59.2]} 31. Qe4 {[%clk 0:01:31.6]} 31... Qd6 {[%clk 0:00:55.4]}
32. Rd3 {[%clk 0:01:29.1]} 32... Qd7 {[%clk 0:00:45]} 33. Rf3 {[%clk 0:01:03]}
33... Rxd4 {[%clk 0:00:25.4]} 34. Qe5+ {[%clk 0:01:03.2]} 34... Kg8 {[%clk
0:00:25.8]} 35. Qb8+ {[%clk 0:01:03]} 35... Kg7 {[%clk 0:00:26.4]} 36. Qe5+
{[%clk 0:01:03.2]} 36... Kg8 {[%clk 0:00:27]} 37. Qb8+ {[%clk 0:01:03]} 37...
Qd8 {[%clk 0:00:27.7]} 38. Qxb7 {[%clk 0:00:59.5]} 38... Rd1+ {[%clk 0:00:28.4]}
39. Kh2 {[%clk 0:00:59.7]} 39... Qd6+ {[%clk 0:00:28.8]} 40. g3 {[%clk 0:00:55]}
40... Qd5 {[%clk 0:00:29.4]} 41. Qb8+ {[%clk 0:00:49.5]} 41... Kg7 {[%clk
0:00:29.7]} 42. Qf4 {[%clk 0:00:49.5]} 42... Rb1 {[%clk 0:00:24.7]} 43. Kg2
{[%clk 0:00:34.4]} 43... c5 {[%clk 0:00:17.7]} 44. h4 {[%clk 0:00:30.3]} 44...
c4 {[%clk 0:00:16.8]} 45. Qe3 {[%clk 0:00:17.8]} 45... Rd1 {[%clk 0:00:16.7]}
46. Qc3+ {[%clk 0:00:09.1]} 46... Kg8 {[%clk 0:00:16.6]} 47. Qf6 {[%clk
0:00:05.5]} 47... Rd3 {[%clk 0:00:13.8]} 48. Qf4 {[%clk 0:00:06.1]} 48... Rb3
{[%clk 0:00:11.7]} 49. Qf6 {[%clk 0:00:05.3]} 49... c3 {[%clk 0:00:08.2]} 50.
bxc3 {[%clk 0:00:05.1]} 50... Rxa3 {[%clk 0:00:08.6]} 51. Qf4 {[%clk 0:00:02.1]}
51... Rxc3 {[%clk 0:00:07.4]} 52. g4 {[%clk 0:00:01.2]} 52... Qxf3+ {[%clk
0:00:07.4]} 53. Qxf3 {[%clk 0:00:01.1]} 53... Rxf3 {[%clk 0:00:08.3]} 54. Kxf3
{[%clk 0:00:02]} 54... a3 {[%clk 0:00:09.2]} 55. gxh5 {[%clk 0:00:02.4]} 55...
a2 {[%clk 0:00:10.1]} 56. Kf4 {[%clk 0:00:03.1]} 56... a1=Q {[%clk 0:00:11]} 57.
Kg5 {[%clk 0:00:03.8]} 57... Qe5+ {[%clk 0:00:10.9]} 58. Kh6 {[%clk 0:00:04.2]}
58... Qxh5# {[%clk 0:00:11.8]} 0-1

[Event "Early-Titled-Tuesday-Blitz-May-07-2024"]
[Site "Chess.com"]
[Date "2024.05.07"]
[Round "5"]
[White "unbreakablepawn35"]
[Black "ScofieldMichael01"]
[Result "1-0"]
[WhiteElo "2424"]
[BlackElo "2558"]
[TimeControl "180+1"]
[EndTime "9:00:06 PDT"]
[Termination "unbreakablepawn35 won by resignation"]

1. c4 {[%clk 0:03:00.9]} 1... g6 {[%clk 0:02:58.3]} 2. Nc3 {[%clk 0:02:59.7]}
2... Bg7 {[%clk 0:02:55.3]} 3. Nf3 {[%clk 0:02:59.2]} 3... c5 {[%clk 0:02:54.2]}
4. g3 {[%clk 0:02:57.1]} 4... Nc6 {[%clk 0:02:52.7]} 5. Bg2 {[%clk 0:02:56]}
5... e5 {[%clk 0:02:52.5]} 6. O-O {[%clk 0:02:54.4]} 6... Nge7 {[%clk
0:02:44.4]} 7. d3 {[%clk 0:02:53.9]} 7... O-O {[%clk 0:02:41]} 8. a3 {[%clk
0:02:53.3]} 8... d6 {[%clk 0:02:38.6]} 9. Rb1 {[%clk 0:02:52.6]} 9... Rb8 {[%clk
0:02:34.7]} 10. Ne1 {[%clk 0:02:49.4]} 10... Be6 {[%clk 0:02:33.3]} 11. b4
{[%clk 0:02:42.8]} 11... b6 {[%clk 0:02:32.5]} 12. Nc2 {[%clk 0:02:34.4]} 12...
Qd7 {[%clk 0:02:32.3]} 13. Ne3 {[%clk 0:02:15.5]} 13... Bh3 {[%clk 0:02:31.7]}
14. Ncd5 {[%clk 0:02:11.5]} 14... Bxg2 {[%clk 0:02:30.9]} 15. Kxg2 {[%clk
0:02:12.4]} 15... Nxd5 {[%clk 0:02:30.6]} 16. Nxd5 {[%clk 0:02:12.1]} 16... Ne7
{[%clk 0:02:30.3]} 17. Nxe7+ {[%clk 0:02:06.5]} 17... Qxe7 {[%clk 0:02:30.3]}
18. e3 {[%clk 0:02:06]} 18... f5 {[%clk 0:02:27]} 19. Bb2 {[%clk 0:02:04.8]}
19... f4 {[%clk 0:02:26.2]} 20. exf4 {[%clk 0:02:02.7]} 20... exf4 {[%clk
0:02:25.6]} 21. Bxg7 {[%clk 0:01:54]} 21... f3+ {[%clk 0:02:08.6]} 22. Kh1
{[%clk 0:01:41.1]} 22... Qxg7 {[%clk 0:01:55.4]} 23. Re1 {[%clk 0:01:38.5]}
23... g5 {[%clk 0:01:46.7]} 24. Re4 {[%clk 0:01:23.6]} 24... g4 {[%clk
0:01:36.9]} 25. Qd2 {[%clk 0:01:21]} 25... Rbe8 {[%clk 0:01:31.7]} 26. Rbe1
{[%clk 0:01:19]} 26... Rxe4 {[%clk 0:01:31.4]} 27. Rxe4 {[%clk 0:01:18.1]} 27...
Qa1+ {[%clk 0:00:58.4]} 28. Re1 {[%clk 0:01:14.6]} 28... Qf6 {[%clk 0:00:51.1]}
29. Qe3 {[%clk 0:01:08.3]} 29... cxb4 {[%clk 0:00:48.4]} 30. axb4 {[%clk
0:01:07.7]} 30... Rf7 {[%clk 0:00:42.5]} 31. Qe4 {[%clk 0:00:50.4]} 31... Qf5
{[%clk 0:00:24.9]} 32. Qd4 {[%clk 0:00:43.4]} 32... h5 {[%clk 0:00:13.1]} 33. b5
{[%clk 0:00:32.5]} 33... Qf6 {[%clk 0:00:12.1]} 34. Qd5 {[%clk 0:00:30.7]} 34...
h4 {[%clk 0:00:06.5]} 35. Qe4 {[%clk 0:00:23.1]} 35... Qf5 {[%clk 0:00:05.6]}
36. Qxf5 {[%clk 0:00:21.7]} 36... Rxf5 {[%clk 0:00:06.5]} 37. Re4 {[%clk
0:00:21.3]} 37... hxg3 {[%clk 0:00:05.6]} 38. hxg3 {[%clk 0:00:20.6]} 38... Rg5
{[%clk 0:00:03.2]} 39. Kg1 {[%clk 0:00:21.1]} 39... Kf7 {[%clk 0:00:03.5]} 40.
Kf1 {[%clk 0:00:20.8]} 40... d5 {[%clk 0:00:04.1]} 41. Rf4+ {[%clk 0:00:19.4]}
41... Ke6 {[%clk 0:00:04]} 42. Ke1 {[%clk 0:00:19.3]} 42... dxc4 {[%clk
0:00:04.1]} 43. dxc4 {[%clk 0:00:20.2]} 43... Kd6 {[%clk 0:00:04.4]} 44. Kd2
{[%clk 0:00:20.7]} 44... Kc5 {[%clk 0:00:04.9]} 45. Kc3 {[%clk 0:00:21.1]} 45...
Rg6 {[%clk 0:00:03]} 46. Rf5+ {[%clk 0:00:21.3]} 46... Kd6 {[%clk 0:00:03.5]}
47. Kd4 {[%clk 0:00:21.8]} 47... Re6 {[%clk 0:00:02.4]} 48. Rd5+ {[%clk
0:00:19]} 48... Kc7 {[%clk 0:00:01.8]} 49. Rg5 {[%clk 0:00:19.2]} 49... Re2
{[%clk 0:00:02.1]} 50. Rxg4 {[%clk 0:00:19]} 50... Rxf2 {[%clk 0:00:02.9]} 51.
Rf4 {[%clk 0:00:19.2]} 51... Rf1 {[%clk 0:00:03.5]} 52. g4 {[%clk 0:00:19.4]}
52... f2 {[%clk 0:00:04]} 53. Ke3 {[%clk 0:00:18.5]} 53... Rc1 {[%clk
0:00:04.4]} 54. Kxf2 {[%clk 0:00:18.1]} 54... Rc3 {[%clk 0:00:05.1]} 55. g5
{[%clk 0:00:17.1]} 55... Rc2+ {[%clk 0:00:05.8]} 56. Kf3 {[%clk 0:00:17.2]}
56... Rc3+ {[%clk 0:00:05.4]} 57. Kg4 {[%clk 0:00:17.8]} 57... Rc1 {[%clk
0:00:05.7]} 58. g6 {[%clk 0:00:18.5]} 58... Rg1+ {[%clk 0:00:05.2]} 59. Kf5
{[%clk 0:00:19.1]} 59... Kd6 {[%clk 0:00:06.1]} 60. Kf6 {[%clk 0:00:19.7]} 60...
a5 {[%clk 0:00:05.1]} 61. bxa6 {[%clk 0:00:19.4]} 61... Kc7 {[%clk 0:00:04.5]}
62. g7 {[%clk 0:00:19.7]} 62... Kb8 {[%clk 0:00:03.9]} 63. Kf7 {[%clk
0:00:20.2]} 63... Ka7 {[%clk 0:00:04.1]} 64. g8=Q {[%clk 0:00:20.8]} 64... Kxa6
{[%clk 0:00:04.9]} 65. Qxg1 {[%clk 0:00:19.9]} 65... Ka5 {[%clk 0:00:05.8]} 1-0

[Event "Early-Titled-Tuesday-Blitz-May-07-2024"]
[Site "Chess.com"]
[Date "2024.05.07"]
[Round "5"]
[White "remyrushbrooke"]
[Black "Kotofeyca"]
[Result "0-1"]
[WhiteElo "2286"]
[BlackElo "2499"]
[TimeControl "180+1"]
[EndTime "9:00:09 PDT"]
[Termination "Kotofeyca won on time"]

1. Nf3 {[%clk 0:03:00.9]} 1... d5 {[%clk 0:02:32.4]} 2. g3 {[%clk 0:02:59.7]}
2... c6 {[%clk 0:02:33.3]} 3. Bg2 {[%clk 0:02:59.2]} 3... Bg4 {[%clk 0:02:33.1]}
4. Ne5 {[%clk 0:02:48.3]} 4... Bh5 {[%clk 0:02:31.9]} 5. c4 {[%clk 0:02:46.9]}
5... f6 {[%clk 0:02:23.3]} 6. g4 {[%clk 0:02:46.1]} 6... fxe5 {[%clk 0:02:16.1]}
7. gxh5 {[%clk 0:02:45.9]} 7... e6 {[%clk 0:02:12.8]} 8. d4 {[%clk 0:02:39.9]}
8... e4 {[%clk 0:02:02.2]} 9. Nc3 {[%clk 0:02:33.2]} 9... Nf6 {[%clk 0:02:01.3]}
10. Bg5 {[%clk 0:02:28.4]} 10... Be7 {[%clk 0:01:54.4]} 11. Bxf6 {[%clk
0:02:27.8]} 11... gxf6 {[%clk 0:01:49.7]} 12. e3 {[%clk 0:02:25.7]} 12... Rg8
{[%clk 0:01:46.8]} 13. Bh3 {[%clk 0:02:12.1]} 13... f5 {[%clk 0:01:44.2]} 14.
Qb3 {[%clk 0:02:06.4]} 14... Qb6 {[%clk 0:01:36.4]} 15. cxd5 {[%clk 0:02:00.6]}
15... cxd5 {[%clk 0:01:22.4]} 16. Nxd5 {[%clk 0:01:28.1]} 16... Qxb3 {[%clk
0:01:05]} 17. axb3 {[%clk 0:01:29]} 17... exd5 {[%clk 0:01:04.7]} 18. Bxf5
{[%clk 0:01:29.2]} 18... h6 {[%clk 0:00:46.3]} 19. Bc8 {[%clk 0:01:24.9]} 19...
Rg7 {[%clk 0:00:43]} 20. Ke2 {[%clk 0:01:08.7]} 20... Bf8 {[%clk 0:00:28.7]} 21.
Rhg1 {[%clk 0:00:53.2]} 21... Rc7 {[%clk 0:00:26.6]} 22. Rac1 {[%clk 0:00:52.7]}
22... Kd8 {[%clk 0:00:19.5]} 23. Rxc7 {[%clk 0:00:33.4]} 23... Kxc7 {[%clk
0:00:20.4]} 24. Rc1+ {[%clk 0:00:28.1]} 24... Nc6 {[%clk 0:00:19.8]} 25. Be6
{[%clk 0:00:27.2]} 25... Kd6 {[%clk 0:00:18.2]} 26. Bf5 {[%clk 0:00:22.1]} 26...
Ne7 {[%clk 0:00:17.6]} 27. Bg6 {[%clk 0:00:18.7]} 27... Rc8 {[%clk 0:00:17.3]}
28. Rxc8 {[%clk 0:00:17.5]} 28... Nxc8 {[%clk 0:00:17]} 29. Kd2 {[%clk
0:00:14.9]} 29... Ke6 {[%clk 0:00:15.6]} 30. Be8 {[%clk 0:00:13.1]} 30... Bd6
{[%clk 0:00:13.8]} 31. h3 {[%clk 0:00:11.7]} 31... Ne7 {[%clk 0:00:14.1]} 32.
Bb5 {[%clk 0:00:10.3]} 32... Kf5 {[%clk 0:00:14.1]} 33. Be2 {[%clk 0:00:09.6]}
33... Kg5 {[%clk 0:00:14.3]} 34. Bg4 {[%clk 0:00:09.1]} 34... Kf6 {[%clk
0:00:14.1]} 35. Kc3 {[%clk 0:00:09.1]} 35... Nf5 {[%clk 0:00:14.1]} 36. b4
{[%clk 0:00:07.6]} 36... Kg5 {[%clk 0:00:14.4]} 37. b5 {[%clk 0:00:06.3]} 37...
Ng7 {[%clk 0:00:13.9]} 38. Kd2 {[%clk 0:00:04.6]} 38... Nxh5 {[%clk 0:00:13.5]}
39. Be6 {[%clk 0:00:02.4]} 39... Nf6 {[%clk 0:00:12.7]} 40. Ke2 {[%clk
0:00:01.6]} 40... Kh4 {[%clk 0:00:12.5]} 41. f3 {[%clk 0:00:01.8]} 41... exf3+
{[%clk 0:00:11.4]} 42. Kxf3 {[%clk 0:00:02.7]} 42... Kg5 {[%clk 0:00:11.1]} 43.
Bc8 {[%clk 0:00:02.4]} 43... b6 {[%clk 0:00:10.9]} 44. b3 {[%clk 0:00:02.9]}
44... Bh2 {[%clk 0:00:09.2]} 45. Be6 {[%clk 0:00:02.9]} 45... Bg1 {[%clk
0:00:08.8]} 46. Bxd5 {[%clk 0:00:01.3]} 46... Nxd5 {[%clk 0:00:08.5]} 47. e4
{[%clk 0:00:02.2]} 47... Nc3 {[%clk 0:00:07.9]} 48. d5 {[%clk 0:00:02.2]} 48...
Bh2 {[%clk 0:00:07.5]} 49. Ke3 {[%clk 0:00:01.3]} 49... Nxb5 {[%clk 0:00:07.8]}
50. Kd3 {[%clk 0:00:01.5]} 50... Kf4 {[%clk 0:00:07.4]} 51. Kc4 {[%clk
0:00:01.6]} 51... Nd6+ {[%clk 0:00:07.6]} 52. Kd4 {[%clk 0:00:02]} 52... Nf7
{[%clk 0:00:06.1]} 53. e5 {[%clk 0:00:01.5]} 53... Nxe5 {[%clk 0:00:06.1]} 54.
d6 {[%clk 0:00:01.9]} 54... Nd7 {[%clk 0:00:06.5]} 55. Kd5 {[%clk 0:00:02.4]}
55... Kf5 {[%clk 0:00:07]} 56. Kc6 {[%clk 0:00:02.9]} 56... Ke6 {[%clk
0:00:07.9]} 57. Kb7 {[%clk 0:00:03.2]} 57... Bxd6 {[%clk 0:00:08.4]} 58. Kxa7
{[%clk 0:00:02.6]} 58... Bc5 {[%clk 0:00:09.3]} 59. Kb7 {[%clk 0:00:02.8]} 59...
Nf6 {[%clk 0:00:10.1]} 60. Kc6 {[%clk 0:00:03.3]} 60... h5 {[%clk 0:00:11]} 0-1

[Event "Early-Titled-Tuesday-Blitz-May-07-2024"]
[Site "Chess.com"]
[Date "2024.05.07"]
[Round "5"]
[White "ubdip"]
[Black "SRob2003"]
[Result "1-0"]
[WhiteElo "2516"]
[BlackElo "2640"]
[TimeControl "180+1"]
[EndTime "9:00:11 PDT"]
[Termination "ubdip won on time"]

1. c4 {[%clk 0:03:00.9]} 1... e5 {[%clk 0:02:58.1]} 2. Nc3 {[%clk 0:03:01.5]}
2... Nf6 {[%clk 0:02:49.5]} 3. g3 {[%clk 0:03:01.5]} 3... g6 {[%clk 0:02:46.2]}
4. Bg2 {[%clk 0:03:01.3]} 4... Bg7 {[%clk 0:02:46.6]} 5. Nf3 {[%clk 0:02:59.1]}
5... Nc6 {[%clk 0:02:45.7]} 6. O-O {[%clk 0:02:58]} 6... O-O {[%clk 0:02:30]} 7.
d3 {[%clk 0:02:52.8]} 7... d6 {[%clk 0:02:30.5]} 8. h3 {[%clk 0:02:50.7]} 8...
h6 {[%clk 0:02:25.2]} 9. a3 {[%clk 0:02:47.2]} 9... a5 {[%clk 0:02:24.1]} 10.
Qc2 {[%clk 0:02:45.2]} 10... Be6 {[%clk 0:02:24.2]} 11. b3 {[%clk 0:02:38.3]}
11... Qd7 {[%clk 0:02:23.8]} 12. Kh2 {[%clk 0:02:37.3]} 12... d5 {[%clk
0:02:23.1]} 13. Bb2 {[%clk 0:02:34.1]} 13... Rac8 {[%clk 0:02:19.8]} 14. Rad1
{[%clk 0:02:31.6]} 14... b6 {[%clk 0:02:08.9]} 15. e4 {[%clk 0:02:24.5]} 15...
d4 {[%clk 0:02:00.7]} 16. Nd5 {[%clk 0:02:23.4]} 16... Ne8 {[%clk 0:01:59.8]}
17. Nd2 {[%clk 0:02:14.9]} 17... f5 {[%clk 0:01:56.4]} 18. f4 {[%clk 0:02:06]}
18... Nd6 {[%clk 0:01:51]} 19. fxe5 {[%clk 0:01:58.2]} 19... Bxe5 {[%clk
0:01:45.3]} 20. exf5 {[%clk 0:01:53.4]} 20... Nxf5 {[%clk 0:01:42.9]} 21. Ne4
{[%clk 0:01:45.2]} 21... h5 {[%clk 0:01:37.6]} 22. Bc1 {[%clk 0:01:34.7]} 22...
h4 {[%clk 0:01:35]} 23. Bf4 {[%clk 0:01:34.9]} 23... hxg3+ {[%clk 0:01:34.9]}
24. Nxg3 {[%clk 0:01:34.9]} 24... Nxg3 {[%clk 0:01:15.3]} 25. Kxg3 {[%clk
0:01:29]} 25... Rxf4 {[%clk 0:01:09.2]} 26. Rxf4 {[%clk 0:01:20.5]} 26... g5
{[%clk 0:01:07.2]} 27. Kf2 {[%clk 0:01:13.4]} 27... Bxf4 {[%clk 0:01:03]} 28.
Nf6+ {[%clk 0:01:13]} 28... Kg7 {[%clk 0:00:57.5]} 29. Nxd7 {[%clk 0:01:13.9]}
29... Bxd7 {[%clk 0:00:55.6]} 30. Re1 {[%clk 0:01:09.2]} 30... Rf8 {[%clk
0:00:51.7]} 31. Kg1 {[%clk 0:01:07.8]} 31... Ne5 {[%clk 0:00:50.3]} 32. Qe2
{[%clk 0:01:03.4]} 32... Be3+ {[%clk 0:00:45.8]} 33. Kh1 {[%clk 0:01:03.4]}
33... Rf2 {[%clk 0:00:44.9]} 34. Qd1 {[%clk 0:00:49.9]} 34... g4 {[%clk
0:00:28]} 35. Rf1 {[%clk 0:00:35.9]} 35... gxh3 {[%clk 0:00:12.8]} 36. Rxf2
{[%clk 0:00:34.1]} 36... Bxf2 {[%clk 0:00:13.7]} 37. Be4 {[%clk 0:00:31.9]}
37... Bg4 {[%clk 0:00:13.6]} 38. Qf1 {[%clk 0:00:29.2]} 38... Be3 {[%clk
0:00:12.7]} 39. Qe1 {[%clk 0:00:19]} 39... Bg5 {[%clk 0:00:03.9]} 40. Qg3 {[%clk
0:00:18.5]} 40... Kf6 {[%clk 0:00:04.2]} 41. Qf2+ {[%clk 0:00:18]} 41... Ke6
{[%clk 0:00:03.1]} 42. Qf8 {[%clk 0:00:17.9]} 42... c5 {[%clk 0:00:01.9]} 43.
Qc8+ {[%clk 0:00:16.5]} 43... Kf6 {[%clk 0:00:02]} 44. Qd8+ {[%clk 0:00:16.5]}
44... Ke6 {[%clk 0:00:01.3]} 45. Qxg5 {[%clk 0:00:16.6]} 45... Be2 {[%clk
0:00:01.6]} 46. Qh6+ {[%clk 0:00:16.3]} 46... Ke7 {[%clk 0:00:01.4]} 47. Qxh3
{[%clk 0:00:16.7]} 47... Bg4 {[%clk 0:00:00.7]} 48. Qh4+ {[%clk 0:00:17]} 48...
Kd6 {[%clk 0:00:01.5]} 49. Qg5 {[%clk 0:00:17.4]} 49... Be6 {[%clk 0:00:02.1]}
50. Qf6 {[%clk 0:00:17.7]} 50... Nd7 {[%clk 0:00:02.4]} 51. Qg7 {[%clk
0:00:17.1]} 51... Ne5 {[%clk 0:00:01.6]} 52. Qf8+ {[%clk 0:00:17.4]} 52... Kd7
{[%clk 0:00:01.6]} 53. Qg7+ {[%clk 0:00:17]} 53... Kd6 {[%clk 0:00:02.1]} 54.
Qf6 {[%clk 0:00:17.3]} 54... Nd7 {[%clk 0:00:01.6]} 55. Qd8 {[%clk 0:00:17.6]}
55... Bg4 {[%clk 0:00:00.6]} 56. Kg2 {[%clk 0:00:16.6]} 56... Be6 {[%clk
0:00:01.2]} 57. Kf2 {[%clk 0:00:16.9]} 57... Bg4 {[%clk 0:00:01.4]} 58. Ke1
{[%clk 0:00:17.5]} 58... Be6 {[%clk 0:00:02]} 59. Kd2 {[%clk 0:00:18]} 59... Bg4
{[%clk 0:00:02.2]} 60. Kc1 {[%clk 0:00:18.7]} 60... Be6 {[%clk 0:00:02.7]} 61.
Kb2 {[%clk 0:00:19.2]} 61... Bg4 {[%clk 0:00:03.1]} 62. Qh8 {[%clk 0:00:19.4]}
62... Be6 {[%clk 0:00:02.1]} 63. Qh6 {[%clk 0:00:19.5]} 63... Ne5 {[%clk
0:00:02.4]} 64. Qf4 {[%clk 0:00:19.5]} 64... Bd7 {[%clk 0:00:02]} 65. Qf6+
{[%clk 0:00:19.2]} 65... Be6 {[%clk 0:00:02]} 66. Bf5 {[%clk 0:00:19.3]} 1-0

[Event "Early-Titled-Tuesday-Blitz-May-07-2024"]
[Site "Chess.com"]
[Date "2024.05.07"]
[Round "5"]
[White "arenal72"]
[Black "Aisen1011"]
[Result "1-0"]
[WhiteElo "2616"]
[BlackElo "2470"]
[TimeControl "180+1"]
[EndTime "9:00:14 PDT"]
[Termination "arenal72 won by resignation"]

1. Nf3 {[%clk 0:03:00.9]} 1... d5 {[%clk 0:02:53.1]} 2. g3 {[%clk 0:03:00.7]}
2... Nf6 {[%clk 0:02:53.5]} 3. Bg2 {[%clk 0:03:00.5]} 3... Bf5 {[%clk
0:02:54.1]} 4. O-O {[%clk 0:03:00.3]} 4... e6 {[%clk 0:02:54.8]} 5. d3 {[%clk
0:03:00.8]} 5... h6 {[%clk 0:02:55.1]} 6. c4 {[%clk 0:03:00.7]} 6... c6 {[%clk
0:02:55.2]} 7. Be3 {[%clk 0:02:59.6]} 7... Nbd7 {[%clk 0:02:25.9]} 8. Nc3 {[%clk
0:02:57.1]} 8... Be7 {[%clk 0:02:20.1]} 9. Qb3 {[%clk 0:02:56.4]} 9... Qc8
{[%clk 0:01:56.2]} 10. Rac1 {[%clk 0:02:52.5]} 10... dxc4 {[%clk 0:01:56]} 11.
dxc4 {[%clk 0:02:49.1]} 11... Nc5 {[%clk 0:01:53.5]} 12. Qd1 {[%clk 0:02:42.1]}
12... O-O {[%clk 0:01:52.2]} 13. Nd4 {[%clk 0:02:37.6]} 13... Bh7 {[%clk
0:01:51.7]} 14. b4 {[%clk 0:02:35.7]} 14... Nce4 {[%clk 0:01:51.2]} 15. Nxe4
{[%clk 0:02:34.6]} 15... Bxe4 {[%clk 0:01:52.1]} 16. Qb3 {[%clk 0:02:32.2]}
16... Rd8 {[%clk 0:01:51]} 17. Rfd1 {[%clk 0:02:29.7]} 17... Bxg2 {[%clk
0:01:50.9]} 18. Kxg2 {[%clk 0:02:29.6]} 18... Ng4 {[%clk 0:01:51.8]} 19. a3
{[%clk 0:02:22]} 19... Nxe3+ {[%clk 0:01:51.8]} 20. Qxe3 {[%clk 0:02:21.5]}
20... Bg5 {[%clk 0:01:52.2]} 21. f4 {[%clk 0:02:18.4]} 21... e5 {[%clk
0:01:22.8]} 22. fxg5 {[%clk 0:01:57]} 22... exd4 {[%clk 0:01:22.1]} 23. Rxd4
{[%clk 0:01:56.4]} 23... hxg5 {[%clk 0:01:21.5]} 24. Rcd1 {[%clk 0:01:54.7]}
24... Rxd4 {[%clk 0:01:21.8]} 25. Rxd4 {[%clk 0:01:55]} 25... Qf5 {[%clk
0:01:18]} 26. Qd3 {[%clk 0:01:46.2]} 26... Qf6 {[%clk 0:01:13.7]} 27. Rd7 {[%clk
0:01:38.1]} 27... Rb8 {[%clk 0:00:52.8]} 28. c5 {[%clk 0:01:32.8]} 28... g6
{[%clk 0:00:51.4]} 29. Qd6 {[%clk 0:01:19.8]} 29... Qxd6 {[%clk 0:00:40.1]} 30.
Rxd6 {[%clk 0:01:20.7]} 30... Kf8 {[%clk 0:00:36.9]} 31. Kf3 {[%clk 0:01:13.6]}
31... Ke7 {[%clk 0:00:33.4]} 32. Rd3 {[%clk 0:01:13]} 32... Rh8 {[%clk
0:00:31.7]} 33. Kg2 {[%clk 0:01:10.7]} 33... g4 {[%clk 0:00:25.6]} 34. Rd4
{[%clk 0:01:00.7]} 34... f5 {[%clk 0:00:23.2]} 35. e4 {[%clk 0:00:59.6]} 35...
Kf6 {[%clk 0:00:13.9]} 36. exf5 {[%clk 0:00:43.3]} 36... gxf5 {[%clk 0:00:14.8]}
37. Rd7 {[%clk 0:00:42.3]} 37... Re8 {[%clk 0:00:13]} 38. Kf2 {[%clk 0:00:42]}
38... Re7 {[%clk 0:00:12.8]} 39. Rd8 {[%clk 0:00:36.7]} 39... a6 {[%clk
0:00:10.5]} 40. Rd6+ {[%clk 0:00:31.2]} 40... Re6 {[%clk 0:00:07]} 41. Rd8
{[%clk 0:00:23]} 41... Re7 {[%clk 0:00:06.3]} 42. Rh8 {[%clk 0:00:22.8]} 42...
Ke5 {[%clk 0:00:05.9]} 43. h3 {[%clk 0:00:21.2]} 43... gxh3 {[%clk 0:00:03.5]}
44. Rxh3 {[%clk 0:00:21.8]} 44... Kd4 {[%clk 0:00:04.1]} 45. Kf3 {[%clk
0:00:14.6]} 45... Re3+ {[%clk 0:00:04.1]} 46. Kf4 {[%clk 0:00:14.4]} 46... Rxa3
{[%clk 0:00:05]} 47. Kxf5 {[%clk 0:00:13.1]} 47... Kd5 {[%clk 0:00:03.9]} 48.
Rh5 {[%clk 0:00:08.7]} 48... Rxg3 {[%clk 0:00:03.1]} 49. Kf4+ {[%clk 0:00:08.8]}
49... Kc4 {[%clk 0:00:04]} 50. Kxg3 {[%clk 0:00:08.9]} 50... Kxb4 {[%clk
0:00:04.9]} 51. Kf4 {[%clk 0:00:09.1]} 51... a5 {[%clk 0:00:05.8]} 52. Rh7
{[%clk 0:00:08.5]} 52... a4 {[%clk 0:00:06.7]} 53. Rxb7+ {[%clk 0:00:08.4]}
53... Kxc5 {[%clk 0:00:07.6]} 54. Ke3 {[%clk 0:00:08.8]} 54... a3 {[%clk
0:00:07.9]} 55. Kd3 {[%clk 0:00:08.8]} 55... a2 {[%clk 0:00:07.9]} 56. Ra7
{[%clk 0:00:09]} 56... a1=Q {[%clk 0:00:08.6]} 57. Rxa1 {[%clk 0:00:09.1]} 1-0